Cogmind - Beta 12 @@@ ROGUE MODE // 2023.12.27 @ 22:06:47 Player: Dosh Result: Self-destructed Performance ------------- Evolutions (7) 3500 Regions Visited (14) 2800 Robots Destroyed (316) 1580 Value Destroyed (12692) 12692 Prototype IDs (35) 700 Alien Tech Used (0) 0 Bonus (1378) 1378 TOTAL SCORE: 22650 Bonus ------- High Alert Combat Kills 986 Follower Combat Kills 135 Aligned with FarCom 300 Friendly Fire -43 Cogmind --------- Core Integrity 20/1300 Matter 300/300 Energy 100/100 System Corruption 24% Temperature Cool (0) Movement Core (50) Location -3/Research Parts ------- > --- POWER (2) -------- (None) > --- PROPULSION (4) --- (None) > --- UTILITY (11) ----- Advanced Hacking Suite > --- WEAPON (4) ------- (None) > --- INVENTORY (5) ---- Advanced Targeting Computer Hacking Suite Heavy Mass Driver Improved Grenade Launcher Peak State ------------ > --- POWER ------------ Cold Fusion Reactor Light Quantum Reactor > --- PROPULSION ------- Heavy Treads Heavy Treads > --- UTILITY ---------- Cargo Storage Unit Improved Terrain Scanner Advanced Terrain Scan Processor Experimental Targeting Computer Core Analyzer Improved Phase Shifter Improved Medium Armor Plating Advanced Force Field Improved Hacking Suite Advanced Hacking Suite > --- WEAPON ----------- XL Autogun Subcomponent XL Autogun Subcomponent XL Autogun Subcomponent XL Autogun Subcomponent > --- INVENTORY -------- Antimatter Reactor Heavy Treads Heavy Treads Advanced Matter Compressor Structural Scanner Advanced Signal Interpreter Advanced Targeting Computer Kinecellerator Improved Transmission Jammer Improved Weapon Shielding Improved Medium Armor Plating Improved Shield Generator Force Field Advanced Force Field Hacking Suite Improved Hacking Suite Improved Hacking Suite System Shield Improved System Shield Authchip [Weapon] Heavy Mass Driver Heavy Mass Driver Improved Grenade Launcher Missile Launcher Heavy Flail [Rating: 126] Favorites ----------- Power Antimatter Reactor Engine Deuterium Engine Power Core Light Nuclear Core Reactor Antimatter Reactor Propulsion Heavy Treads Treads Heavy Treads Wheel Armored Huge Wheel Flight Unit Cesium-ion Thruster Utility Improved Medium Armor Plating Device Improved Shield Generator Storage Cargo Storage Unit Processor Core Analyzer Hackware Hacking Suite Protection Improved Medium Armor Plating Weapon XL Autogun Subcomponent Energy Gun EM Pulse Gun Energy Cannon Plasma Cannon Ballistic Gun XL Autogun Subcomponent Ballistic Cannon Advanced Assault Cannon Launcher Grenade Launcher Impact Weapon Heavy Flail Build | -11 -10 -10 -9 -9 -9 -8 -8 -7 -7 -7 -6 -5 -4 -3 ------- Run | Jun Mat Min Mat Min Exi Min Mat Fac Was Fac Fac Fac Fac Res Slots Evolved 14 | . . . 2 . . . 2 2 . . 2 2 2 2 Power 1 | . . . . . . . . . . . . . 1 . Propulsion 2 | . . . . . . . . . . . 2 . . . Utility 9 | . . . 2 . . . 2 . . . . 2 1 2 Weapon 2 | . . . . . . . . 2 . . . . . . Parts Attached 191 | 6 13 9 18 . 2 5 17 47 2 7 17 14 12 22 Power 20 | 1 1 2 2 . . 1 1 6 1 . 2 1 2 . Engine 9 | 1 . 2 2 . . 1 1 2 . . . . . . Core 5 | . 1 . . . . . . 4 . . . . . . Reactor 6 | . . . . . . . . . 1 . 2 1 2 . Propulsion 33 | 2 4 2 3 . . 1 4 8 . 1 3 2 . 3 Treads 15 | 2 4 1 . . . . . . . . 3 2 . 3 Leg . | . . . . . . . . . . . . . . . Wheel 16 | . . 1 3 . . 1 4 6 . 1 . . . . Hover . | . . . . . . . . . . . . . . . Flight 2 | . . . . . . . . 2 . . . . . . Utility 76 | 1 3 1 4 . 2 1 6 14 1 5 7 10 10 11 Device 29 | . . . 1 . 1 . . 6 1 2 3 5 4 6 Storage 5 | 1 1 . . . 1 . . . . . . . 2 . Processor 4 | . . . . . . . . . . 1 . . 1 2 Hackware 9 | . . . 2 . . . 1 2 . . 1 2 . 1 Protection 29 | . 2 1 1 . . 1 5 6 . 2 3 3 3 2 Artifact . | . . . . . . . . . . . . . . . Weapon 62 | 2 5 4 9 . . 2 6 19 . 1 5 1 . 8 Energy Gun 1 | 1 . . . . . . . . . . . . . . Energy Cannon 4 | . . . . . . . 2 2 . . . . . . Ballistic Gun 34 | 1 5 2 2 . . 1 4 10 . 1 4 1 . 3 Ballistic Cannon 12 | . . 1 4 . . . . 5 . . 1 . . 1 Launcher 10 | . . 1 3 . . 1 . 2 . . . . . 3 Special Weapon . | . . . . . . . . . . . . . . . Impact Weapon 1 | . . . . . . . . . . . . . . 1 Slashing Weapon . | . . . . . . . . . . . . . . . Piercing Weapon . | . . . . . . . . . . . . . . . Special Melee Weapon . | . . . . . . . . . . . . . . . Unidentified Prototypes 11 | . . . . . . . 1 5 . . 2 . 3 . Corrupted Parts 2 | . . 2 . . . . . . . . . . . . System Corruption 2 | . . 2 . . . . . . . . . . . . Parts Lost 64 | . . 6 3 . . 3 4 23 . 1 1 1 . 22 Power 11 | . . 1 1 . . 1 1 5 . . . . . 2 Propulsion 11 | . . 3 . . . . 1 3 . . . . . 4 Utility 25 | . . . 1 . . 1 2 5 . 1 1 1 . 13 Weapon 17 | . . 2 1 . . 1 . 10 . . . . . 3 Highest Loss Streak 19 | . . 3 2 . . 2 3 5 . 1 1 1 . 19 To Critical Strikes 2 | . . . . . . . . 1 . . . . . 1 Average Slot Usage (%) 80 | . 98 93 95 100 91 86 84 75 69 63 78 81 83 82 Engine 3 | . 5 12 10 11 11 10 8 4 . . . . . . Reactor 3 | . . . . . . . . . 3 7 6 4 9 8 Treads 6 | . 27 19 . . . . . . . . 13 10 10 8 Wheel 6 | . . 2 21 22 22 22 15 7 15 9 . . . . Device 6 | . . . . 11 10 7 . 6 15 14 7 8 8 11 Storage 7 | . 14 14 11 11 11 11 9 7 7 7 6 5 5 3 Processor 3 | . . . . . . . . . . 5 6 5 6 13 Hackware 7 | . . . 18 11 11 11 9 12 7 1 . 7 10 9 Protection 11 | . 13 13 10 11 3 3 24 9 7 7 11 11 9 5 Ballistic Gun 17 | . 26 24 6 11 11 21 17 14 7 7 22 17 21 17 Ballistic Cannon 2 | . . 2 14 11 11 . . 3 . . 1 4 . . Naked Turns . | . . . . . . . . . . . . . . . Heaviest Build 218 | 13 30 35 42 41 158 158 174 182 184 189 189 185 197 218 Greatest Support 140 | 40 40 40 26 26 26 26 28 38 32 32 140 140 140 140 Greatest Overweight (x) 54 | . . 2 2 1 6 6 10 54 5 6 1 1 1 3 Average Overweight (x) 3 | . . . 1 1 3 5 6 6 5 5 1 1 1 1 Largest Inventory Capacity 30 | 8 15 15 15 15 30 30 30 30 30 30 30 30 30 30 Average Capacity 27 | 6 11 15 15 15 24 30 30 30 30 30 30 30 30 29 Most Carried 30 | 3 15 15 15 14 19 22 30 30 27 30 30 30 30 30 Average Carried 25 | 1 9 13 14 14 16 20 26 27 22 28 29 29 29 27 Final Capacity 30 | 8 15 15 15 15 30 30 30 30 30 30 30 30 30 5 Final Carried 30 | 3 15 14 14 14 19 22 30 21 27 28 30 30 30 5 Class Distribution -------------------- 49% | Hauler-Tank 18% | Hauler-Mutant 15% | Hauler-Skirmisher 9% | Mutant 4% | Hacker-Mutant Dominant Class ---------------- Mutant | -10/Materials Mutant | -10/Mines Hacker-Mutant | -9/Materials Scavenger-Mutant | -9/Mines Hauler-Mutant | -9/Exiles Hauler-Mutant | -8/Mines Hauler-Mutant | -8/Materials Hauler-Tank | -7/Factory Hauler-Skirmisher | -7/Waste Hauler-Skirmisher | -7/Factory Hauler-Tank | -6/Factory Hauler-Tank | -5/Factory Hauler-Tank | -4/Factory Hauler-Skirmisher | -3/Research Resources | -11 -10 -10 -9 -9 -9 -8 -8 -7 -7 -7 -6 -5 -4 -3 ----------- Run | Jun Mat Min Mat Min Exi Min Mat Fac Was Fac Fac Fac Fac Res Matter Collected 12435 | 200 598 169 751 . 80 168 641 3091 173 973 1298 1232 920 2141 Remotely . | . . . . . . . . . . . . . . . Salvage Created 13422 | . 694 208 800 . . 273 1002 2964 . 1203 1479 1289 970 2540 Parts 753 | . 52 9 63 . . 20 70 147 . 74 85 70 43 120 Haulers Intercepted 1 | . 1 . . . . . . . . . . . . . Recyclers Shooed 9 | . . . 1 . . . . . . . 1 1 1 5 Parts Field Recycled . | . . . . . . . . . . . . . . . Retrieved Matter . | . . . . . . . . . . . . . . . Parts Self-Destructed . | . . . . . . . . . . . . . . . Prevented . | . . . . . . . . . . . . . . . Kills | -11 -10 -10 -9 -9 -9 -8 -8 -7 -7 -7 -6 -5 -4 -3 ------- Run | Jun Mat Min Mat Min Exi Min Mat Fac Was Fac Fac Fac Fac Res Combat Hostiles Destroyed 257 | . 14 7 25 . . 8 23 68 . 19 26 24 14 29 Guns 181 | . 14 4 2 . . 6 23 42 . 19 20 13 14 24 Cannons 47 | . . . 14 . . . . 16 . . 6 11 . . AOE 28 | . . 3 9 . . 2 . 9 . . . . . 5 Classes Destroyed 18 | . 6 . 4 . . . 1 4 . . . . . 3 Worker 18 | . 1 . 1 . . . 4 4 . 1 1 1 1 4 Builder 5 | . . . 1 . . . . . . 1 1 . . 2 Tunneler 1 | . . . . . . . . . . . . . . 1 Hauler 1 | . 1 . . . . . . . . . . . . . Recycler 15 | . . . 2 . . 2 1 2 . 2 1 . . 5 Operator 9 | . 3 . 3 . . . . 1 . 2 . . . . Watcher 19 | . 2 . 4 . . . 2 2 . 2 2 3 . 2 Swarmer 51 | . 3 3 9 . . 8 6 11 . 3 4 4 . . Saboteur 1 | . . . . . . . . . . . . . . 1 Grunt 82 | . 11 4 7 . . . 7 18 . 7 6 8 4 10 Brawler 7 | . . . . . . . . 4 . 2 1 . . . Duelist 10 | . . . 1 . . . 1 5 . 2 . . . 1 Protector 3 | . . . . . . . . 2 . . . . . 1 Sentry 33 | . . . 8 . . . 7 5 . 2 3 4 2 2 Hunter 16 | . . . . . . . 2 4 . . 2 4 2 2 Programmer 44 | . . . . . . . . 10 . 3 10 4 6 11 Behemoth 1 | . . . . . . . . . . . . . . 1 Assembled 9 | . . . . . . . . 9 . . . . . . Best Kill Streak 15 | . 3 3 7 . . 4 7 6 . 4 4 5 5 15 Combat Bots Only 13 | . 3 3 5 . . 4 3 5 . 4 3 5 4 13 Max Kills in Single Turn 3 | . 1 1 3 . . 2 2 2 . 1 2 2 1 3 Gunslinging 1 | . . . . . . 1 1 . . . 1 . . . Exploded 2 | . . 1 2 . . 2 . 2 . . . . . 2 Melee . | . . . . . . . . . . . . . . . Uniques/NPCs Destroyed . | . . . . . . . . . . . . . . . Combat | -11 -10 -10 -9 -9 -9 -8 -8 -7 -7 -7 -6 -5 -4 -3 -------- Run | Jun Mat Min Mat Min Exi Min Mat Fac Was Fac Fac Fac Fac Res Damage Taken 14049 | . 446 538 647 . . 251 1196 3510 . 345 1014 876 444 4782 Core 2284 | . 60 67 117 . . 40 147 346 . 46 63 85 33 1280 Absorbed by Shields 2454 | . . . . . . 54 . 313 . 47 355 326 376 983 Reduced by Siege Mode 154 | . . . . . . . . . . . 4 27 33 90 Redirected to Shielding 489 | . 43 43 . . . . . 104 . . 86 109 48 56 Regen/Repaired (Parts) 1141 | . 89 . 63 . . . . 28 . 624 . 337 . . Core Remaining (%) 75 | 100 . 49 . . . 60 73 . . 44 92 91 97 . Volleys Fired 756 | . 76 25 66 . . 21 67 171 . 47 69 80 40 94 Largest 4 | . 2 2 2 . . 2 2 4 . 1 4 4 4 4 Hottest 172 | . 60 50 83 . . 53 93 172 . 60 108 108 80 96 Shots Fired 2077 | . 139 49 120 . . 42 134 469 . 52 264 284 161 363 Gun 1728 | . 139 44 28 . . 41 131 326 . 52 241 216 161 349 Cannon 312 | . . . 80 . . . 3 135 . . 23 68 . 3 Launcher 37 | . . 5 12 . . 1 . 8 . . . . . 11 Special . | . . . . . . . . . . . . . . . Kinetic 1989 | . 135 44 108 . . 41 131 417 . 52 264 284 161 352 Thermal 47 | . . . . . . . 3 44 . . . . . . Explosive 37 | . . 5 12 . . 1 . 8 . . . . . 11 Electromagnetic 4 | . 4 . . . . . . . . . . . . . Robot Hit Streak 34 | . 8 6 8 . . 5 9 17 . 12 13 27 24 34 Robot Miss Streak 8 | . 5 3 8 . . 5 5 6 . 4 5 7 4 2 Penetration Max 1 | . . . . . . . 1 . . . . . . . Secondary Targets 18 | . 1 . . . . 1 4 2 . . 2 . 2 6 Max Gunslinging Chain 1 | . 1 . . . . 1 1 1 . . 1 . 1 1 Shots Hit Robots 1336 | . 77 31 68 . . 20 90 298 . 48 155 167 112 270 Core Hits 699 | . 36 12 78 . . 11 53 143 . 46 67 71 48 134 Critical Kills 2 | . . . . . . . 1 1 . . . . . . Critical Parts Destroyed 2 | . 1 . . . . . . 1 . . . . . . Critical Strikes 14 | . 1 . . . . . 1 8 . . 1 3 . . Meltdown 1 | . . . . . . . . 1 . . . . . . Destroy 3 | . 1 . . . . . 1 1 . . . . . . Blast 10 | . . . . . . . . 6 . . 1 3 . . Melee Attacks 1 | . . . . . . . . . . . . . . 1 Impact 1 | . . . . . . . . . . . . . . 1 Slashing . | . . . . . . . . . . . . . . . Piercing . | . . . . . . . . . . . . . . . Sneak Attacks . | . . . . . . . . . . . . . . . Combat Hostiles . | . . . . . . . . . . . . . . . Follow-up Attacks . | . . . . . . . . . . . . . . . Damage Inflicted 33674 | 3 1007 465 1780 . . 420 1939 8682 . 2466 3773 3608 2372 7159 Guns 25804 | . 989 289 126 . . 311 1934 5685 . 2415 3268 2701 2363 5723 Cannons 4363 | . . . 1092 . . . . 1969 . . 399 842 . 61 Explosions 3152 | . . 168 549 . . 109 . 1010 . . . . . 1316 Melee . | . . . . . . . . . . . . . . . Ramming 355 | 3 18 8 13 . . . 5 18 . 51 106 65 9 59 Kinetic 29306 | . 962 289 1218 . . 311 1934 6820 . 2415 3667 3543 2363 5784 Thermal 889 | . . . . . . . . 889 . . . . . . Explosive 2998 | . . 168 549 . . 109 . 856 . . . . . 1316 Electromagnetic 126 | . 27 . . . . . . 99 . . . . . . Impact . | . . . . . . . . . . . . . . . Slashing . | . . . . . . . . . . . . . . . Piercing . | . . . . . . . . . . . . . . . Highest Corruption 24 | . 2 4 . . . . . 17 17 22 2 2 3 24 Average Corruption 6 | . 2 2 . . . . . 6 17 17 1 1 2 10 Corruption Purged 5 | . . . . . . . . . . . 3 2 . . Corruption Blocked . | . . . . . . . . . . . . . . . Effects 261 | . 7 8 . . . . . 81 12 73 30 12 5 33 Message Errors 73 | . 2 3 . . . . . 17 6 19 10 5 . 11 Matter Fused 64 | . 3 1 . . . . . 29 2 18 3 3 . 5 Heat Flow Errors 23 | . . . . . . . . . 2 12 3 . 1 5 Energy Discharges 29 | . . 1 . . . . . 10 . 9 5 1 1 2 Parts Rejected 2 | . . . . . . . . . . 1 . . . 1 Parts Fused 1 | . . . . . . . . . . 1 . . . . Data Loss (minor) 31 | . 1 . . . . . . 12 1 5 5 2 1 4 Data Loss (major) 11 | . . 2 . . . . . 2 1 . 3 1 . 2 Misfires 11 | . 1 . . . . . . 4 . 5 . . 1 . Alerts 9 | . . . . . . . . 3 . 2 1 . 1 2 Misdirections 1 | . . . . . . . . . . 1 . . . . Weapon Failures 6 | . . 1 . . . . . 4 . . . . . 1 Overload Shots . | . . . . . . . . . . . . . . . Overflow Damage 174 | . . 22 50 . . . . 80 . . 17 5 . . Projectiles 52 | . . . . . . . . 42 . . 5 5 . . Explosions 107 | . . 22 50 . . . . 35 . . . . . . Melee 15 | . . . . . . . . 3 . . 12 . . . Knockbacks 32 | . . . 20 . . . . 9 . . 1 1 . 1 Impact . | . . . . . . . . . . . . . . . Kinetic 30 | . . . 19 . . . . 8 . . 1 1 . 1 Secondary 2 | . . . 1 . . . . 1 . . . . . . Self-Inflicted Damage 280 | . . 29 25 . . . 2 155 . 25 . . . 44 Shots 7 | . . 1 1 . . . . 4 . . . . . 1 Rammed 28 | 2 3 1 1 . . . 1 1 . 2 6 5 1 5 Targets Rammed 28 | 2 3 1 1 . . . 1 1 . 2 6 5 1 5 Kicked . | . . . . . . . . . . . . . . . Crushed . | . . . . . . . . . . . . . . . Highest Temperature 420 | . 20 48 88 . . . 153 420 168 243 242 294 333 352 Average Temperature 85 | . 5 21 21 . . . 33 127 85 71 82 88 105 114 Received Heat Transfer 2203 | . 180 240 207 . . . 288 792 . 96 150 75 25 150 Effects 14 | . . . . . . . . 11 . . . . 1 2 Energy Bleed 4 | . . . . . . . . 2 . . . . 1 1 Interference 7 | . . . . . . . . 6 . . . . . 1 Matter Decay 1 | . . . . . . . . 1 . . . . . . Short Circuit 1 | . . . . . . . . 1 . . . . . . Damage (minor) 1 | . . . . . . . . 1 . . . . . . Siege Activations 20 | . . . . . . . . . . . 3 6 4 7 Total Turns 237 | . . . . . . . . . . . 15 91 33 98 Longest Duration 36 | . . . . . . . . . . . 7 36 15 33 Robots Corrupted . | . . . . . . . . . . . . . . . Combat Hostiles . | . . . . . . . . . . . . . . . Parts Fried . | . . . . . . . . . . . . . . . Impact Corruptions 3 | . . . . . . . . 1 . . 2 . . . Robots Melted 1 | . . . . . . . . 1 . . . . . . Combat Hostiles 1 | . . . . . . . . 1 . . . . . . Parts Melted 2 | . . . . . . . . 2 . . . . . . Heat Transferred 1600 | . . . . . . . . 1600 . . . . . . Parts Sabotaged . | . . . . . . . . . . . . . . . Parts Stolen . | . . . . . . . . . . . . . . . Parts Stripped . | . . . . . . . . . . . . . . . Power Chain Reactions 1 | . . . . . . . . 1 . . . . . . Missiles Intercepted . | . . . . . . . . . . . . . . . Alert | -11 -10 -10 -9 -9 -9 -8 -8 -7 -7 -7 -6 -5 -4 -3 ------- Run | Jun Mat Min Mat Min Exi Min Mat Fac Was Fac Fac Fac Fac Res Peak Influence 1076 | . 177 199 567 198 . 194 406 1076 376 396 514 425 414 656 Initial 376 | . . 31 . 198 . . . 145 376 263 186 251 207 152 Average 236 | . 80 83 203 198 . 87 215 347 376 218 222 142 253 399 Maximum Alert Level 3 | . . . 2 . . . 2 3 1 1 2 2 2 2 Low Security (%) 52 | 100 100 100 58 100 . 100 39 47 . 37 45 78 11 31 Level 1 30 | . . . 27 . . . 55 10 100 62 35 16 84 19 Level 2 15 | . . . 14 . . . 4 30 . . 19 4 3 48 Level 3 2 | . . . . . . . . 11 . . . . . . Level 4 . | . . . . . . . . . . . . . . . Level 5 . | . . . . . . . . . . . . . . . High Security . | . . . . . . . . . . . . . . . Max Security . | . . . . . . . . . . . . . . . Squads Dispatched 69 | . 4 . 1 . . . 4 20 . 7 11 8 4 10 Investigation 9 | . 2 . . . . . 1 2 . . 2 . 1 1 Extermination 31 | . . . . . . . . 10 . 3 7 4 3 4 Reinforcement 16 | . 2 . 1 . . . 3 3 . 1 1 3 . 2 Assault 7 | . . . . . . . . 2 . . 1 1 . 3 Garrison 6 | . . . . . . . . 3 . 3 . . . . Intercept . | . . . . . . . . . . . . . . . Searches Triggered . | . . . . . . . . . . . . . . . Construction Impeded 1 | . . . . . . . . . . . . . . 1 Haulers Reinforced 1 | . . . . . . . . 1 . . . . . . Active Scanning Responses . | . . . . . . . . . . . . . . . Cargo Convoy Interrupts . | . . . . . . . . . . . . . . . Stealth | -11 -10 -10 -9 -9 -9 -8 -8 -7 -7 -7 -6 -5 -4 -3 --------- Run | Jun Mat Min Mat Min Exi Min Mat Fac Was Fac Fac Fac Fac Res Distress Signals 16 | . 1 . 4 . . . 3 5 . . . 2 . 1 Communications Jammed 6 | . . . . . . . . . . . . . . 6 Distress Signals 6 | . . . . . . . . . . . . . . 6 Times Spotted 372 | . 23 7 43 . . 8 33 84 . 24 34 41 17 58 Peak Tracking Total 15 | . 3 3 8 . . 4 5 6 . 4 3 5 3 15 Tactical Retreats 8 | . . . . . . . 1 2 . . 1 1 . 3 Traps | -11 -10 -10 -9 -9 -9 -8 -8 -7 -7 -7 -6 -5 -4 -3 ------- Run | Jun Mat Min Mat Min Exi Min Mat Fac Was Fac Fac Fac Fac Res Traps Triggered 23 | . 4 1 . . . . 1 6 . 1 7 3 . . Indirectly . | . . . . . . . . . . . . . . . Trap Hack Attempts . | . . . . . . . . . . . . . . . Triggered . | . . . . . . . . . . . . . . . Disarmed . | . . . . . . . . . . . . . . . Reprogrammed . | . . . . . . . . . . . . . . . Reused . | . . . . . . . . . . . . . . . Traps Extracted . | . . . . . . . . . . . . . . . Installed . | . . . . . . . . . . . . . . . Triggered . | . . . . . . . . . . . . . . . Machines | -11 -10 -10 -9 -9 -9 -8 -8 -7 -7 -7 -6 -5 -4 -3 ---------- Run | Jun Mat Min Mat Min Exi Min Mat Fac Was Fac Fac Fac Fac Res Machines Disabled 21 | . . . 7 . . 1 1 4 . 3 3 1 1 . Max in Single Turn 2 | . . . 2 . . 1 1 1 . 1 1 1 1 . Garrison Access 2 | . . . . . . . 1 1 . . . . . . Machines Repaired . | . . . . . . . . . . . . . . . Machines Sabotaged . | . . . . . . . . . . . . . . . Overloaded Fab Kills . | . . . . . . . . . . . . . . . Hacking | -11 -10 -10 -9 -9 -9 -8 -8 -7 -7 -7 -6 -5 -4 -3 --------- Run | Jun Mat Min Mat Min Exi Min Mat Fac Was Fac Fac Fac Fac Res Machines Accessed 64 | . 7 1 8 . 1 . 7 15 . 4 7 10 2 2 Terminals 39 | . 6 . 6 . . . 5 10 . 1 2 7 1 1 Fabricators 8 | . . . . . . . . 1 . 1 4 1 . 1 Repair Stations 7 | . 1 . 1 . . . . 1 . 2 . 2 . . Recycling Units 1 | . . . . . . . 1 . . . . . . . Scanalyzers 5 | . . . 1 . . . . 2 . . 1 . 1 . Garrison Access 2 | . . . . . . . 1 1 . . . . . . Total Hacks 164 | . 19 1 21 . 1 . 18 42 . 11 16 24 5 6 Successful 97 | . 8 1 17 . 1 . 10 21 . 8 7 18 4 2 Failed 67 | . 11 . 4 . . . 8 21 . 3 9 6 1 4 Catastrophic 15 | . 3 . . . . . 3 7 . 1 . 1 . . Database Lockouts . | . . . . . . . . . . . . . . . Manual 84 | . 17 . 14 . 1 . 18 19 . 2 4 8 1 . Terminals 100 | . 17 . 12 . . . 16 25 . 2 4 18 2 4 Fabricators 17 | . . . . . . . . 2 . 2 9 2 . 2 Repair Stations 17 | . 2 . 2 . . . . 2 . 7 . 4 . . Recycling Units 1 | . . . . . . . 1 . . . . . . . Scanalyzers 25 | . . . 7 . . . . 12 . . 3 . 3 . Garrison Access 2 | . . . . . . . 1 1 . . . . . . Terminal Hacks 30 | . 3 1 2 . 1 . 4 7 . . 1 10 1 . Part Schematic 2 | . . . . . . . 1 . . . . 1 . . Robot Analysis 7 | . 2 . 1 . . . 2 . . . . 2 . . Open Door 1 | . . 1 . . . . . . . . . . . . Level Access Points 1 | . . . . . . . . . . . . 1 . . Branch Access Points 2 | . . . 1 . . . . 1 . . . . . . Terminal Index 2 | . . . . . . . . 1 . . . 1 . . Alert Level 4 | . . . . . . . . 1 . . 1 1 1 . Unreport Threat 2 | . . . . . . . . 1 . . . 1 . . Locate Traps 2 | . 1 . . . . . . 1 . . . . . . Recall Extermination 1 | . . . . . . . . . . . . 1 . . Recall Reinforcements 1 | . . . . . . . . . . . . 1 . . Hauler Manifests 1 | . . . . . . . 1 . . . . . . . Registered Prototypes 1 | . . . . . . . . 1 . . . . . . Zone Layout 2 | . . . . . . . . 1 . . . 1 . . EX-Prototype ID Bank 1 | . . . . . 1 . . . . . . . . . Fabricator Hacks 8 | . . . . . . . . 1 . 1 3 1 . 2 Network Status 3 | . . . . . . . . 1 . 1 . 1 . . Load Schematic 3 | . . . . . . . . . . . 2 . . 1 Build 2 | . . . . . . . . . . . 1 . . 1 Repair Station Hacks 16 | . 2 . 2 . . . . 2 . 6 . 4 . . Scan Component 8 | . 1 . 1 . . . . 1 . 3 . 2 . . Repair 8 | . 1 . 1 . . . . 1 . 3 . 2 . . Recycling Unit Hacks . | . . . . . . . . . . . . . . . Scanalyzer 19 | . . . 7 . . . . 8 . . 2 . 2 . Insert Component 9 | . . . 3 . . . . 4 . . 1 . 1 . Analyze 10 | . . . 4 . . . . 4 . . 1 . 1 . Garrison Access Hacks 2 | . . . . . . . 1 1 . . . . . . Seal Access 2 | . . . . . . . 1 1 . . . . . . Unauthorized Hacks 22 | . 3 . 6 . . . 5 2 . 1 1 3 1 . Terminals 21 | . 3 . 6 . . . 4 2 . 1 1 3 1 . Track 1 | . . . 1 . . . . . . . . . . . Assimilate 3 | . 1 . 1 . . . 1 . . . . . . . Botnet 16 | . 2 . 3 . . . 3 2 . 1 1 3 1 . Operators 1 | . . . 1 . . . . . . . . . . . Fabricators . | . . . . . . . . . . . . . . . Repair Stations . | . . . . . . . . . . . . . . . Recycling Units 1 | . . . . . . . 1 . . . . . . . Monitor 1 | . . . . . . . 1 . . . . . . . Scanalyzers . | . . . . . . . . . . . . . . . Garrison Access . | . . . . . . . . . . . . . . . Data Cores Recovered 2 | . 1 . 1 . . . . . . . . . . . Used . | . . . . . . . . . . . . . . . Hacking Detections 50 | . 7 . 4 . . . 6 12 . 3 6 9 2 1 Full Trace Events 6 | . 1 . . . . . . 2 . . 1 . 1 1 Feedback Events 1 | . . . . . . . . 1 . . . . . . Corruption 1 | . . . . . . . . 1 . . . . . . Feedback Blocked . | . . . . . . . . . . . . . . . Robot Schematics Acquired . | . . . . . . . . . . . . . . . Robots Built . | . . . . . . . . . . . . . . . Authchips . | . . . . . . . . . . . . . . . Time . | . . . . . . . . . . . . . . . Total Robot Build Rating . | . . . . . . . . . . . . . . . Part Schematics Acquired 10 | . . . 3 . . . . 4 . . 1 1 1 . Parts Built 4 | . . . . . . . . . . . 2 . . 2 Authchips 2 | . . . . . . . . . . . 1 . . 1 Time 100 | . . . . . . . . . . . 36 . . 64 Total Part Build Rating 22 | . . . . . . . . . . . 6 . . 16 Parts Repaired 7 | . 1 . 1 . . . . 1 . 2 . 2 . . Time 295 | . 26 . 38 . . . . 44 . 128 . 59 . . Parts Recycled . | . . . . . . . . . . . . . . . Recycled Matter . | . . . . . . . . . . . . . . . Retrieved Matter . | . . . . . . . . . . . . . . . Retrieved Components . | . . . . . . . . . . . . . . . Parts Scanalyzed 9 | . . . 3 . . . . 4 . . 1 . 1 . Part Schematics Acquired 9 | . . . 3 . . . . 4 . . 1 . 1 . Parts Damaged . | . . . . . . . . . . . . . . . Bothacking | -11 -10 -10 -9 -9 -9 -8 -8 -7 -7 -7 -6 -5 -4 -3 ------------ Run | Jun Mat Min Mat Min Exi Min Mat Fac Was Fac Fac Fac Fac Res Used RIF Installer . | . . . . . . . . . . . . . . . Robots Hacked . | . . . . . . . . . . . . . . . Non-combat . | . . . . . . . . . . . . . . . Combat . | . . . . . . . . . . . . . . . Robot Hacks Applied . | . . . . . . . . . . . . . . . Relay Couplers Released 6 | . . . . . . . . . . . 3 3 . . Programmers 6 | . . . . . . . . . . . 3 3 . . Fabnet Peak Effective % . | . . . . . . . . . . . . . . . Robots Rewired . | . . . . . . . . . . . . . . . Allies Hacked . | . . . . . . . . . . . . . . . Hacks Repelled . | . . . . . . . . . . . . . . . Allies | -11 -10 -10 -9 -9 -9 -8 -8 -7 -7 -7 -6 -5 -4 -3 -------- Run | Jun Mat Min Mat Min Exi Min Mat Fac Was Fac Fac Fac Fac Res Total Allies 7 | . . . 1 2 . . 1 . . . . 3 . . Largest Group 3 | . . . 1 2 2 . 1 . . . . 3 . . Highest-Rated Group 93 | . . . 10 43 43 . 10 . . . . 93 . . Highest-Rated Ally 31 | . . . 10 31 31 . 10 . . . . 31 . . Total Orders . | . . . . . . . . . . . . . . . Ally Attacks 22 | . . . . . . . . . . . . 22 . . Total Damage 426 | . . . . . . . . . . . . 426 . . Kills 3 | . . . . . . . . . . . . 3 . . Allies Corrupted . | . . . . . . . . . . . . . . . Allies Melted . | . . . . . . . . . . . . . . . Intel | -11 -10 -10 -9 -9 -9 -8 -8 -7 -7 -7 -6 -5 -4 -3 ------- Run | Jun Mat Min Mat Min Exi Min Mat Fac Was Fac Fac Fac Fac Res Robot Analysis Total 7 | . 2 . 1 . . . 2 . . . . 2 . . Derelict Logs Recovered 1 | . . 1 . . . . . . . . . . . . Drone Launches . | . . . . . . . . . . . . . . . Drone Recoveries . | . . . . . . . . . . . . . . . Exploration | -11 -10 -10 -9 -9 -9 -8 -8 -7 -7 -7 -6 -5 -4 -3 ------------- Run | Jun Mat Min Mat Min Exi Min Mat Fac Was Fac Fac Fac Fac Res Turns Passed 23908 | 79 1413 497 1267 96 362 526 2608 5125 318 1822 4563 2762 1180 1290 Spaces Moved 10408 | 42 672 257 896 81 246 253 1197 2157 179 859 1788 973 427 381 Core 8 | 2 . . . . . . . 6 . . . . . . Treads 4464 | 40 672 183 . . . . . . . . 1788 973 427 381 Legs . | . . . . . . . . . . . . . . . Wheels 5936 | . . 74 896 81 246 253 1197 2151 179 859 . . . . Hover . | . . . . . . . . . . . . . . . Flight . | . . . . . . . . . . . . . . . Fastest Speed 50 | 50 160 115 105 105 105 165 180 160 175 175 240 240 240 240 Average Speed 198 | 154 160 158 106 105 145 179 192 206 175 184 240 240 240 241 Slowest Speed 2750 | 160 160 240 130 105 180 180 250 2750 175 190 240 240 240 400 Overloaded Moves . | . . . . . . . . . . . . . . . Propulsion Burnouts . | . . . . . . . . . . . . . . . Robots Hopped . | . . . . . . . . . . . . . . . Cave-ins Triggered . | . . . . . . . . . . . . . . . Exploration Rate (%) 45 | 3 81 60 89 16 62 39 73 59 80 23 41 31 13 14 Regions Visited 14 Branch Regions 4 Pre-discovered Areas . | . . . . . . . . . . . . . . . Known Exits Taken 2 | . . . 1 . . . . . . . . 1 . . Unknown Exits Taken 10 | 1 1 1 . 1 1 1 1 . . 1 1 . 1 . Scrap Searched 4 | . . 1 . . . 3 . . . . . . . . Spaces Dug 15 | . . . . . . . 2 1 . . 2 6 . 4 Terrain Destroyed 218 | . . 33 47 . . 4 4 69 . 12 2 14 . 33 Melee 1 | . . . . . . . . . . . . . . 1 Projectile 56 | . . . . . . . 4 21 . 12 2 14 . 3 AOE 161 | . . 33 47 . . 4 . 48 . . . . . 29 Terrain Rammed . | . . . . . . . . . . . . . . . Walls Destroyed . | . . . . . . . . . . . . . . . Machines Disabled . | . . . . . . . . . . . . . . . Actions | -11 -10 -10 -9 -9 -9 -8 -8 -7 -7 -7 -6 -5 -4 -3 --------- Run | Jun Mat Min Mat Min Exi Min Mat Fac Was Fac Fac Fac Fac Res Total 12720 | 52 869 299 1099 92 253 283 1366 2572 183 1096 2012 1324 566 654 Wait 1097 | . 89 5 103 12 . . 56 136 1 159 98 230 67 141 Move 10395 | 41 671 256 895 80 245 252 1196 2157 178 858 1787 972 426 381 Hop . | . . . . . . . . . . . . . . . Pick Up 110 | 3 10 1 7 . 3 5 13 17 2 13 16 10 6 4 Fast Attach 76 | 6 8 3 5 . . . 7 24 . 2 7 4 7 3 Attach 52 | . 1 4 3 . 2 3 1 16 . 2 4 5 2 9 Detach 21 | . 2 2 . . 2 . 3 5 . 1 2 . 1 3 Swap 65 | . 4 2 10 . . 2 9 9 2 3 6 5 3 10 Drop 107 | . 5 . 9 . 1 . 13 28 . 9 13 13 13 3 Fire 756 | . 76 25 66 . . 21 67 171 . 47 69 80 40 94 Melee 1 | . . . . . . . . . . . . . . 1 Ram 6 | . . . 1 . . . 1 1 . 2 . . . 1 Kick . | . . . . . . . . . . . . . . . Crush 22 | 2 3 1 . . . . . . . . 6 5 1 4 Escape Stasis 12 | . . . . . . . . 8 . . 4 . . . Rewire . | . . . . . . . . . . . . . . . Trap . | . . . . . . . . . . . . . . . Miscellaneous . | . . . . . . . . . . . . . . . Route ------- -11/Junkyard -10/Materials (discovered 4 exits: *Mat x2 / *Min x2) -10/Mines -9/Materials (discovered 5 exits: *Mat x2 / *Min x2 / *Sto) -9/Mines -9/Exiles -8/Mines -8/Materials (discovered 2 exits: *Fac x2) -7/Factory (discovered 4 exits: *Fac x2 / *Low x2) -7/Waste -7/Factory -6/Factory -5/Factory (discovered 4 exits: *Fac x4) -4/Factory (discovered 2 exits: *Res / [*Upp]) -3/Research History --------- Turn | Location | Event 50 | -11/Junkyard | Discovered new exit (range 16) 80 | -11/Junkyard | Entered Materials 317 | -10/Materials | Build established: Mutant 530 | -10/Materials | Discovered new exit (range 5) 546 | -10/Materials | Discovered new exit (range 15) 744 | -10/Materials | Discovered new exit (range 16) 972 | -10/Materials | Discovered new exit (range 12) 1082 | -10/Materials | Repaired Assault Rifle 1493 | -10/Materials | Entered Mines 1558 | -10/Mines | Lost 3 parts (1p1n1w) 1560 | -10/Mines | Found a damaged Exp. Sensor Array with a note attached 1563 | -10/Mines | Found Prototype Device 1692 | -10/Mines | Discovered new exit (range 9) 1789 | -10/Mines | Learned Materials stockpile data 1876 | -10/Mines | Met a Derelict who couldn't figure out how to use a Trap Extractor 1889 | -10/Mines | Core integrity fell below 50% 1990 | -10/Mines | Entered Materials 1990 | -9/Materials | Evolved 2 slots: Utility x2 2079 | -9/Materials | Discovered new exit (range 15) 2235 | -9/Materials | Discovered new exit (range 14) 2258 | -9/Materials | Identified Exp. Sensor Array 2456 | -9/Materials | Build established: Hacker-Mutant 2565 | -9/Materials | Repaired Imp. Light Armor Plating 2580 | -9/Materials | Discovered new exit (range 5) 2858 | -9/Materials | Discovered new exit (range 9) 2876 | -9/Materials | Identified exit to Mines 2876 | -9/Materials | Identified exit to Storage 3257 | -9/Materials | Entered Mines 3265 | -9/Mines | Deemed a non-threat by the Exiles lab entrance 3266 | -9/Mines | Discovered new exit (range 5) 3323 | -9/Mines | Met a Derelict bent on vengeance 3353 | -9/Mines | Entered Exiles 3353 | -9/Exiles | Accompanied by 2 allies 3380 | -9/Exiles | Met 8R-AWN 3383 | -9/Exiles | Led the pair of lost Derelicts to a safe place 3399 | -9/Exiles | Met EX-HEX 3427 | -9/Exiles | Met EX-BIN 3442 | -9/Exiles | Aligned with FarCom system 3443 | -9/Exiles | Given EX-Vault access code 3467 | -9/Exiles | Opened EX-Vault 3477 | -9/Exiles | Found XL Autogun Array 3531 | -9/Exiles | Warned to stay clear of 0b10 Research branches 3583 | -9/Exiles | Met EX-DEC 3701 | -9/Exiles | Discovered new exit (range 10) 3715 | -9/Exiles | Left Exiles lab with XL Autogun Array 3715 | -9/Exiles | Entered Mines 3779 | -8/Mines | Build established: Hauler-Mutant 3818 | -8/Mines | Discovered new exit (range 12) 4241 | -8/Mines | Entered Materials 4241 | -8/Materials | Evolved 2 slots: Utility x2 4817 | -8/Materials | Discovered new exit (range 10) 5507 | -8/Materials | Discovered new exit (range 16) 5841 | -8/Materials | Lost 3 parts (1p2u) 6849 | -8/Materials | Entered Factory 6849 | -7/Factory | Evolved 2 slots: Weapon x2 7336 | -7/Factory | Discovered new exit (range 10) 7638 | -7/Factory | Build established: Hauler-Tank 8174 | -7/Factory | Repaired Imp. Shield Generator 8566 | -7/Factory | Discovered new exit (range 15) 10008 | -7/Factory | Garrison activated, responded to threat 10126 | -7/Factory | Build established: Hauler-Skirmisher 10550 | -7/Factory | Discovered new exit (range 7) 10592 | -7/Factory | Identified exit to Lower Caves 10888 | -7/Factory | Assembled infested ambush trap array 10952 | -7/Factory | System corruption reached 10% 10983 | -7/Factory | Lost 5 parts (1p1n1u2w) 11041 | -7/Factory | Lost 3 parts (1u2w) 11249 | -7/Factory | First assault squad dispatched 11302 | -7/Factory | Build established: Hauler-Tank 11974 | -7/Factory | Sucked down chute 11974 | -7/Factory | Entered Waste 11974 | -7/Waste | The area was eerily silent 11995 | -7/Waste | Build established: Hauler-Skirmisher 12247 | -7/Waste | Discovered new exit (range 13) 12292 | -7/Waste | Entered Factory 12638 | -7/Factory | Core integrity fell below 50% 12718 | -7/Factory | Repaired Hvy. Treads 13655 | -7/Factory | Discovered new exit (range 8) 13877 | -7/Factory | Garrison activated, responded to threat 13949 | -7/Factory | Repaired Hvy. Treads 14080 | -7/Factory | Build established: Hauler-Tank 14114 | -7/Factory | Entered another Factory area 14114 | -6/Factory | Evolved 2 slots: Propulsion x2 14801 | -6/Factory | Fabricated Imp. Weapon Shielding (x2) 16826 | -6/Factory | Discovered new exit (range 9) 18664 | -6/Factory | First assault squad dispatched 18677 | -6/Factory | Entered another Factory area 18677 | -5/Factory | Evolved 2 slots: Utility x2 19317 | -5/Factory | Repaired Antimatter Reactor 19678 | -5/Factory | Allied Derelicts emerged from ambush trap array 19964 | -5/Factory | Build established: Hauler-Mutant 20287 | -5/Factory | Build established: Hauler-Tank 20497 | -5/Factory | Repaired Hvy. Treads 20562 | -5/Factory | Identified exit to Factory 21377 | -5/Factory | First assault squad dispatched 21439 | -5/Factory | Entered another Factory area 21439 | -4/Factory | Evolved 2 slots: Power x1, Utility x1 21972 | -4/Factory | Discovered new exit (range 7) 22259 | -4/Factory | Found Prototype Processor 22259 | -4/Factory | Identified Exp. Targeting Computer 22597 | -4/Factory | Discovered new exit (range 6) 22619 | -4/Factory | Entered Research 22619 | -3/Research | Evolved 2 slots: Utility x2 22901 | -3/Research | Spotted B-86 Titan 22924 | -3/Research | Destroyed B-86 Titan 23163 | -3/Research | System corruption reached 10% 23342 | -3/Research | Build established: Hauler-Skirmisher 23369 | -3/Research | First assault squad dispatched 23478 | -3/Research | Destroyed 13 combat bots 23744 | -3/Research | Fabricated Adv. Force Field (x2) 23895 | -3/Research | Core integrity fell below 50% 23904 | -3/Research | Core integrity fell below 20% 23909 | -3/Research | Self-destructed Last Messages --------------- 23872_ Acquired 16 matter. 23873_ Adv. Force Field destroyed. 23874_ Adv. Terrain Scan Processor destroyed. 23874_ Critical hit (Blast). 23875_ Slammed into S-43 Plague. 23876_ U-05 Engineer builds a Wall. 23878_ Slammed into S-43 Plague. 23879_ Acquired 7 matter. 23880_ Hvy. Treads destroyed. 23881_ Cold Fusion Reactor destroyed. 23882_ Slammed into S-43 Plague. 23886_ Lgt. Quantum Reactor destroyed. 23887_ Imp. Medium Armor Plating destroyed. 23888_ Cargo Storage Unit destroyed. 23891_ Imp. Hacking Suite destroyed. 23897_ P-80 Master resets S-43 Plague, system corruption cleaned. 23897_ Core Analyzer destroyed. 23902_ %5HS%B1E//URRSSIG V/H/ZO 23908_ S-43 Plague destroyed. 23909_ ALERT: Significant disruption in Zone 1F, assault force dispatched. Map ----- +----------------------------------------------------+ | ??????????????????????????????????????????? | | ??????????????????????????????????????????? | | ??????????????????????????????????????????? | | ??????????????????????????????????????????? | | ??????????????????????????????????????????? | | ??????????????????????????????????????????? | | ??????????????????????????????????????????? | | ??????????????????????????????????????????? | | ??????????????????????????????????????????? | | ??????????????????????g???????????????????? | | ???????????????? ???????????????????????? | | ??????????????# ???????????????????????? | | ??????????????# ???????????????????????? | | ??????????????# ???????????BB#?????????? | | ??????????????# ???????????BB ?????????? | | ??????????????# ???????"??? s#?????????? | | ??????????????+ ???????? ??ss#?????????? | | ??????????????# #??????? ? #? ???????? | | ??????????????# p#???????? ? #??? ???##? | | ??????????????# #?????#??## ##?? ? ??#? | | ??????????????# #???????###* #?????????? | | ??????????????# * #????##???#%[#?? ????#?? | | ??????????????# =!!##???#??### ## ?? ### | | ??????????????#%!!!#?????????# ##?? ?? ?## | | ??????????????#[[s!#????#??### ##?#??##### | | ??????????????#!!!@########## ########## | | ??????????????#!/!spgggp p% H | | ??????????????############### % | | ?????????????????##?##?##???# | | ?????????????????#??##??#####%/############ | | ????????????????????##?#?## !% #####?#? | | ??????????????#??####?###?# % ###??### | | ????????????????########### #?###### | | ?????????????????##?##?#?## [ ######## | | ???????????????????####?### """######## | | ??????????????????#???###?# T"## | | ??????????????????##????### """## | | ?????????????????#?##?##?#" "#! | | ????????????????#?#???#?### ## "S | | ??????????????????################### """ | | ?????????????????#?#?#?##?######??### "" | | ???????????????????##?##?#???####?### | | ??????????????????#?######?######?### | | ??????????????????????#?##?##?############# | | ?????????????????????###?#??###??########## | | ???????????????????????##??################ | | ?????????????????????#??##??###?######### | | ?????????????????????#????#?##??###?##### | | ????????????????????????##?###?#####??### | | ??????????????????????????#?############# | +----------------------------------------------------+ Best States ------------- Heat Dissipation 61 Energy Generation 37 Energy Capacity 425 Matter Stores 300 Matter Capacity 300 Sight Range 16 Terrain Scan Range 16 Terrain Scan Density 210 Jamming Range 14 Additional Mass Support 6 Armor Coverage 600 Propulsion Shielding 33 Weapon Shielding 66 Phase Shifting 10 Evasion (%) 50 Targeting Accuracy 12 Core Analysis 6 Recoil Reduction 4 Kinecelleration 30 Offensive Hacking 30 Authchip Count 3 Item Schematics ----------------- Cargo Storage Unit | -9/Materials | Scanalyzed Hacking Suite | -9/Materials | Scanalyzed Exp. Sensor Array | -9/Materials | Scanalyzed Imp. Weapon Shielding | -7/Factory | Scanalyzed Arm. Huge Wheel | -7/Factory | Scanalyzed Transmission Jammer | -7/Factory | Scanalyzed Imp. VTOL Module | -7/Factory | Scanalyzed Hvy. Treads | -6/Factory | Scanalyzed Adv. Force Field | -5/Factory | Hacked Hvy. Mass Driver | -4/Factory | Scanalyzed Robot Schematics ------------------ None Fabricated ------------ Imp. Weapon Shielding | x2 | -6/Factory | Authchip Adv. Force Field | x2 | -3/Research | Authchip Alien Tech Used ----------------- None Achievements -------------- None Challenges ------------ None Game ------ Seed HackingLauncherArchive Manual? 0 Play Time 01:55:30 Cumulative 85.9 hours Start 2023.12.25 @ 21:46:48 End 2023.12.27 @ 22:06:47 Sessions 9 Manual Loads 0 Difficulty Rogue Special Mode None Game No. 108 Rogue 108 Adventurer 0 Explorer 0 Win Type - Total 1 Types 1/0/0/0/0/0/0/0/0 Lore% 44 Gallery% 52 Achievement% 43 Wizard Run 0 Options --------- ASCII 0 Keyboard 1 Movement Numpad Keybinds 0 Fullscreen 2 Font 18/SmallcapsGlow Map View 76x50 Tactical HUD 1 Map Filters NONE Filters NONE Steam 1 RUN: b5de0572-9b7c-49f3-a0f9-80c8392348c6